bitfinex/quotes_SOLUSD_20230116
["timestamp","ask_amount","ask_price","bid_price","bid_amount"]
[1673856090307,84.64935311,24.107,24.1,0.45271816]
[1673856090506,84.64935311,24.107,24.1,23.70271816]
[1673856091365,84.64935311,24.107,24.1,0.45271816]
[1673856091570,84.64935311,24.107,24.1,0.00271816]
[1673856091571,20.0,24.106,24.1,0.00271816]
[1673856092003,20.0,24.104,24.1,0.00271816]
[1673856092211,38.993,24.103,24.1,0.00271816]
[1673856092422,20.0,24.104,24.1,0.00271816]
[1673856092824,20.0,24.106,24.1,0.00271816]
[1673856093041,84.64935311,24.107,24.1,0.00271816]
[1673856093684,20.0,24.105,24.087,16.600941]
[1673856093901,20.0,24.099,24.087,16.600941]
[1673856094318,1.993,24.098,24.087,16.600941]
[1673856094728,20.0,24.097,24.087,16.600941]
[1673856094948,20.0,24.097,24.087,0.000941]
[1673856094949,18.993,24.096,24.087,0.000941]
[1673856095265,20.0,24.094,24.087,0.000941]
[1673856095465,38.993,24.093,24.087,0.000941]
[1673856095680,21.993,24.092,24.087,0.000941]
[1673856095884,38.993,24.091,24.087,0.000941]
[1673856096087,21.993,24.09,24.087,0.000941]
[1673856096934,1.993,24.09,24.087,0.000941]
[1673856097140,21.993,24.09,24.087,0.000941]
[1673856097564,20.0,24.097,24.087,0.000941]
[1673856097989,20.0,24.109,24.087,0.000941]
[1673856098629,23.25,24.12,24.09,23.25]
[1673856098846,23.25,24.13,24.09,23.25]
[1673856099260,23.25,24.12,24.09,23.25]
[1673856099470,48.26488358,24.106,24.087,0.000941]
[1673856099667,23.25,24.1,24.087,0.000941]
[1673856099887,20.0,24.099,24.087,0.000941]
[1673856100831,20.0,24.099,24.073,20.0]
[1673856101146,1.993,24.098,24.073,20.0]
[1673856103464,136.4179,24.114,24.08,23.2]
[1673856103675,86.64235311,24.107,24.081,20.0]
[1673856103885,84.64935311,24.107,24.082,17.0]
[1673856104096,84.64935311,24.107,24.083,20.0]
[1673856104295,84.64935311,24.107,24.084,17.0]
[1673856104617,84.64935311,24.107,24.09,23.25]
[1673856104830,84.64935311,24.107,24.101,20.0]
[1673856105144,84.64935311,24.107,24.1,23.25]
[1673856106184,84.64935311,24.107,24.102,20.0]
[1673856106390,84.64935311,24.107,24.104,20.0]
[1673856106606,84.64935311,24.107,24.105,20.0]
[1673856106943,84.64935311,24.107,24.106,37.0]
[1673856107136,20.0,24.129,24.107,20.0]
[1673856107351,20.0,24.129,24.11,23.05]
[1673856107670,20.0,24.131,24.111,37.0]
[1673856107858,20.0,24.132,24.111,37.0]
[1673856108277,20.0,24.132,24.11,23.05]
[1673856108504,20.0,24.132,24.103,38.41423264]
[1673856108505,23.05,24.13,24.111,38.41423264]
[1673856108806,20.0,24.128,24.091,20.0]
[1673856109014,1.993,24.127,24.091,20.0]
[1673856109452,20.0,24.126,24.091,20.0]
[1673856109661,38.993,24.125,24.091,20.0]
[1673856109868,20.0,24.124,24.1,23.25]
[1673856110086,20.0,24.122,24.1,23.25]
[1673856110277,21.993,24.121,24.1,23.25]
[1673856110483,20.0,24.12,24.1,23.25]
[1673856110699,20.0,24.118,24.1,23.25]
[1673856112509,20.0,24.12,24.1,23.25]
[1673856113451,114.1057,24.127,24.1,23.25]
[1673856113663,114.1057,24.127,24.11,23.25]
[1673856113853,20.0,24.128,24.11,23.25]
[1673856114270,20.0,24.128,24.101,20.0]
[1673856114493,20.0,24.137,24.104,39.43343264]
[1673856114819,20.0,24.137,24.105,37.0]
[1673856115033,20.0,24.137,24.105,20.0]
[1673856115246,20.0,24.137,24.107,20.0]
[1673856115459,20.0,24.137,24.11,19.54]
[1673856115774,20.0,24.14,24.112,20.0]
[1673856115985,20.0,24.14,24.113,17.0]
[1673856116305,20.0,24.14,24.114,20.0]
[1673856116499,20.0,24.14,24.115,17.0]
[1673856116710,20.0,24.132,24.114,39.43343264]
[1673856117036,20.0,24.132,24.103,20.0]
[1673856117230,20.0,24.132,24.108,37.0]
[1673856117563,20.0,24.132,24.108,20.0]
[1673856118300,20.0,24.132,24.105,20.0]
[1673856118701,20.0,24.132,24.104,20.0]
[1673856119752,20.0,24.132,24.105,20.0]
[1673856120404,20.0,24.132,24.106,17.0]
[1673856120709,20.0,24.14,24.107,20.0]
[1673856120926,20.0,24.14,24.109,20.0]
[1673856121110,20.0,24.132,24.11,17.0]
[1673856122613,20.0,24.14,24.111,20.0]
[1673856122807,20.0,24.14,24.113,20.0]
[1673856123021,20.0,24.14,24.114,17.0]
[1673856123848,20.0,24.14,24.115,20.0]
[1673856124059,20.0,24.14,24.117,20.0]
[1673856124283,20.0,24.14,24.118,20.0]
[1673856124477,20.0,24.14,24.118,37.0]
[1673856124692,20.0,24.148,24.118,76.43343264]
[1673856125024,20.0,24.148,24.119,59.43343264]
[1673856125244,20.0,24.148,24.121,20.0]
[1673856125545,135.0427,24.149,24.122,17.0]
[1673856125780,115.0427,24.149,24.123,40.0]
[1673856125999,115.0427,24.149,24.124,17.0]
[1673856126185,20.0,24.148,24.125,40.0]
[1673856126394,20.0,24.148,24.127,20.0]
[1673856126613,20.0,24.148,24.128,17.0]
[1673856126824,20.0,24.148,24.129,14.5]
[1673856127029,20.0,24.159,24.13,17.0]
[1673856127242,20.0,24.164,24.131,20.0]
[1673856127572,117.4912,24.165,24.14,19.54]
[1673856127762,20.0,24.164,24.14,19.54]
[1673856127972,20.0,24.164,24.141,62.15343264]
[1673856128183,20.0,24.164,24.142,20.0]
[1673856128403,20.0,24.164,24.143,17.0]
[1673856128612,20.0,24.166,24.144,20.0]
[1673856128826,20.0,24.166,24.145,17.0]
[1673856129037,20.0,24.166,24.144,45.15343264]
[1673856129253,20.0,24.164,24.135,20.0]
[1673856129568,21.46196354,24.163,24.136,37.0]
[1673856129784,20.0,24.162,24.137,20.0]
[1673856130095,20.0,24.162,24.138,17.0]
[1673856130700,20.0,24.162,24.139,20.0]
[1673856130931,20.0,24.162,24.14,17.0]
[1673856131750,21.46196354,24.165,24.14,17.0]
[1673856131972,42.20933983,24.2,24.142,20.0]
[1673856131973,118.5563,24.18,24.142,20.0]
[1673856132190,118.5563,24.18,24.15,19.54]
[1673856132383,21.46196354,24.175,24.151,17.0]
[1673856132592,41.46196354,24.174,24.151,59.28594464]
[1673856132807,41.46196354,24.174,24.151,17.0]
[1673856133652,41.46196354,24.174,24.15,19.54]
[1673856133864,41.46196354,24.174,24.151,17.0]
[1673856135024,20.0,24.174,24.151,17.0]
[1673856135339,20.0,24.174,24.152,20.0]
[1673856135533,20.0,24.174,24.153,17.0]
[1673856135976,20.0,24.174,24.153,58.94125398]
[1673856136182,20.0,24.174,24.153,17.0]
[1673856136375,41.46196354,24.174,24.145,20.0]
[1673856136586,20.0,24.174,24.146,37.0]
[1673856136797,20.0,24.178,24.147,20.0]
[1673856137007,21.46196354,24.177,24.148,37.0]
[1673856137218,21.46196354,24.177,24.149,20.0]
[1673856137451,119.5205,24.179,24.15,36.54]
[1673856137759,41.46196354,24.178,24.151,20.0]
[1673856137977,41.46196354,24.178,24.153,20.0]
[1673856138286,119.5205,24.179,24.153,20.0]
[1673856138502,20.0,24.178,24.155,20.0]
[1673856138690,21.46196354,24.178,24.155,20.0]
[1673856138899,20.0,24.189,24.156,17.0]
[1673856139227,160.82766354,24.188,24.157,57.74642264]
[1673856139440,20.0,24.187,24.158,17.0]
[1673856139755,21.46196354,24.188,24.161,20.0]
[1673856139949,117.3246,24.204,24.162,17.0]
[1673856140155,20.0,24.186,24.161,34.8312817]
[1673856140600,21.46196354,24.185,24.161,34.8312817]
[1673856140823,20.0,24.183,24.161,34.8312817]
[1673856141120,20.0,24.183,24.147,20.0]
[1673856141121,19.54,24.18,24.14,19.54]
[1673856141447,156.3176,24.179,24.137,20.0]
[1673856141636,1.993,24.178,24.137,20.0]
[1673856141841,23.45496354,24.178,24.137,20.0]
[1673856142052,20.0,24.176,24.137,20.0]
[1673856142280,21.993,24.175,24.137,20.0]
[1673856142491,21.993,24.175,24.136,109.9782]
[1673856142492,20.0,24.173,24.136,109.9782]
[1673856142688,20.0,24.173,24.131,20.0]
[1673856142689,19.54,24.17,24.12,19.54]
[1673856142903,1.993,24.169,24.121,115.5062]
[1673856143232,20.0,24.168,24.122,20.0]
[1673856143431,20.0,24.166,24.122,20.0]
[1673856143626,21.993,24.165,24.122,20.0]
[1673856143836,18.993,24.164,24.122,20.0]
[1673856144048,20.0,24.162,24.12,19.54]
[1673856144266,156.3844,24.161,24.12,19.54]
[1673856144494,1.993,24.16,24.12,19.54]
[1673856144707,20.0,24.159,24.121,20.0]
[1673856144887,20.0,24.157,24.121,20.0]
[1673856145222,20.0,24.155,24.121,20.0]
[1673856145429,20.0,24.155,24.116,20.0]
[1673856145430,38.993,24.154,24.116,20.0]
[1673856145759,176.95966354,24.154,24.116,20.0]
[1673856145942,20.0,24.152,24.116,20.0]
[1673856146152,20.0,24.151,24.116,20.0]
[1673856146361,20.0,24.15,24.116,20.0]
[1673856146575,41.46196354,24.15,24.116,20.0]
[1673856146774,21.46196354,24.149,24.116,20.0]
[1673856146989,20.0,24.148,24.116,20.0]
[1673856147961,20.0,24.148,24.118,20.0]
[1673856148169,20.0,24.148,24.119,37.0]
[1673856148383,20.0,24.15,24.12,19.54]
[1673856149419,21.46196354,24.149,24.11,19.54]
[1673856149627,58.993,24.148,24.109,10.4075968]
[1673856149845,1.993,24.147,24.109,10.4075968]
[1673856150049,133.55816354,24.147,24.109,10.4075968]
[1673856150375,20.0,24.145,24.109,10.4075968]
[1673856150566,20.0,24.143,24.109,10.4075968]
[1673856150892,21.46196354,24.144,24.111,20.0]
[1673856151207,41.46196354,24.155,24.12,19.54]
[1673856151421,226.6079,24.154,24.121,20.0]
[1673856151614,41.46196354,24.153,24.121,28.14301154]
[1673856151827,41.46196354,24.153,24.122,8.14301154]
[1673856152256,41.46196354,24.153,24.123,37.0]
[1673856152466,20.0,24.153,24.124,20.0]
[1673856152682,226.6079,24.154,24.126,20.0]
[1673856152900,226.6079,24.154,24.127,17.0]
[1673856153106,226.6079,24.154,24.128,20.0]
[1673856153318,226.6079,24.154,24.129,37.0]
[1673856153735,20.0,24.153,24.129,45.14301154]
[1673856154153,20.0,24.153,24.13,8.14301154]
[1673856154370,20.0,24.153,24.131,17.0]
[1673856154580,226.6079,24.154,24.131,17.0]
[1673856154899,226.6079,24.154,24.13,8.14301154]
[1673856154900,20.0,24.153,24.132,20.0]
[1673856155638,20.0,24.153,24.129,20.0]
[1673856156042,41.46196354,24.153,24.128,20.0]
[1673856156254,41.46196354,24.153,24.127,20.0]
[1673856157202,20.0,24.153,24.127,20.0]
[1673856157414,20.0,24.153,24.127,28.14301154]
[1673856157613,20.0,24.153,24.128,37.0]
[1673856157822,226.6079,24.154,24.13,20.0]
[1673856158032,226.6079,24.154,24.131,17.0]
[1673856158260,226.6079,24.154,24.131,25.14301154]
[1673856158457,138.0199,24.18,24.131,17.0]
[1673856158676,118.419,24.165,24.132,8.14301154]
[1673856158878,118.419,24.165,24.14,19.5]
[1673856159203,118.419,24.165,24.141,25.14301154]
[1673856159393,20.0,24.164,24.142,20.0]
[1673856159609,20.0,24.164,24.143,17.0]
[1673856159816,118.419,24.165,24.143,17.0]
[1673856159817,20.0,24.179,24.144,20.0]
[1673856160041,20.0,24.174,24.145,17.0]
[1673856160237,20.0,24.172,24.146,20.0]
[1673856160450,20.0,24.174,24.147,17.0]
[1673856160675,20.0,24.174,24.151,20.0]
[1673856160894,20.0,24.174,24.152,17.0]
[1673856161202,20.0,24.174,24.152,25.14301154]
[1673856161417,20.0,24.174,24.153,8.14301154]
[1673856161627,20.0,24.174,24.148,20.0]
[1673856161838,20.0,24.171,24.13,39.5]
[1673856162030,21.993,24.171,24.14,21.82]
[1673856162351,40.45496354,24.17,24.14,21.82]
[1673856162566,20.0,24.169,24.14,21.82]
[1673856162761,17.0,24.168,24.14,21.82]
[1673856162971,20.0,24.167,24.14,21.82]
[1673856163329,20.0,24.165,24.14,21.82]
[1673856163846,20.0,24.165,24.141,17.0]
[1673856165533,17.0,24.164,24.14,21.82]
[1673856165734,17.0,24.164,24.135,8.14301154]
[1673856165735,20.0,24.163,24.135,8.14301154]
[1673856165947,17.0,24.162,24.136,20.0]
[1673856166463,20.0,24.163,24.136,28.14301154]
[1673856166880,20.0,24.163,24.137,37.0]
[1673856167105,20.0,24.165,24.138,20.0]
[1673856167310,20.0,24.165,24.141,20.0]
[1673856167508,20.0,24.165,24.141,40.0]
[1673856167724,20.0,24.165,24.142,25.14301154]
[1673856168053,20.0,24.165,24.143,28.14301154]
[1673856168373,20.0,24.165,24.144,25.14301154]
[1673856168780,20.0,24.165,24.145,8.14301154]
[1673856168988,117.078,24.167,24.147,20.0]
[1673856169200,117.078,24.167,24.148,20.0]
[1673856169521,20.0,24.166,24.149,17.0]
[1673856169734,20.0,24.166,24.15,20.0]
[1673856169940,20.0,24.166,24.151,17.0]
[1673856170572,20.0,24.166,24.149,17.0]
[1673856170809,20.0,24.166,24.15,20.0]
[1673856170987,20.0,24.166,24.14,21.73]
[1673856171215,41.46196354,24.166,24.141,20.0]
[1673856171396,20.0,24.166,24.14,21.73]
[1673856171605,21.46196354,24.165,24.13,41.82]
[1673856171820,20.0,24.164,24.133,8.14301154]
[1673856172136,20.0,24.162,24.133,8.14301154]
[1673856172348,37.0,24.161,24.133,8.14301154]
[1673856172569,20.0,24.16,24.133,8.14301154]
[1673856172786,20.0,24.159,24.133,8.14301154]
[1673856172984,20.0,24.16,24.133,8.14301154]
[1673856173606,20.0,24.158,24.133,8.14301154]
[1673856173827,20.0,24.158,24.131,20.0]
[1673856174444,20.0,24.158,24.132,8.14301154]
[1673856175010,112.347,24.167,24.14,21.82]
[1673856175210,20.0,24.166,24.141,37.0]
[1673856175418,20.0,24.166,24.142,20.0]
[1673856175638,20.0,24.166,24.143,17.0]
[1673856176045,20.0,24.166,24.143,25.14301154]
[1673856177530,20.0,24.176,24.144,46.63414493]
[1673856177748,131.9823,24.174,24.151,20.0]
[1673856178064,131.9823,24.174,24.152,17.0]
[1673856178784,131.9823,24.174,24.152,25.14301154]
[1673856179003,20.0,24.176,24.153,20.0]
[1673856179195,20.0,24.176,24.154,17.0]
[1673856180675,20.0,24.176,24.15,21.7]
[1673856180889,20.0,24.176,24.151,28.14301154]
[1673856181099,138.6999,24.18,24.16,21.82]
[1673856181312,138.6999,24.18,24.161,20.0]
[1673856181717,20.0,24.187,24.162,38.49113339]
[1673856182144,20.0,24.187,24.161,28.14301154]
[1673856182671,20.0,24.187,24.162,20.0]
[1673856183086,20.0,24.187,24.163,8.14301154]
[1673856183315,20.0,24.187,24.164,17.0]
[1673856183712,20.0,24.187,24.162,8.14301154]
[1673856183923,23.45496354,24.186,24.15,21.82]
[1673856184150,20.0,24.184,24.151,20.0]
[1673856184343,20.0,24.183,24.151,20.0]
[1673856184553,20.0,24.182,24.151,20.0]
[1673856184763,20.0,24.181,24.151,20.0]
[1673856184995,20.0,24.18,24.151,28.14301154]
[1673856185211,20.0,24.179,24.152,17.0]
[1673856185404,20.0,24.187,24.16,21.82]
[1673856185731,21.46196354,24.178,24.153,94.130147]
[1673856186048,20.0,24.177,24.15,21.82]
[1673856186567,20.0,24.177,24.151,20.0]
[1673856186779,41.46196354,24.177,24.151,20.0]
[1673856187091,20.0,24.184,24.151,20.0]
[1673856187308,20.0,24.184,24.16,21.77]
[1673856187712,41.46196354,24.184,24.161,20.0]
[1673856187921,41.46196354,24.184,24.162,17.0]
[1673856188128,41.46196354,24.184,24.162,57.23486672]
[1673856188338,20.0,24.183,24.162,40.23486672]
[1673856188551,20.0,24.182,24.154,109.5125]
[1673856188755,37.0,24.181,24.15,21.82]
[1673856188985,20.0,24.179,24.15,21.82]
[1673856189201,17.0,24.178,24.15,21.82]
[1673856189507,20.0,24.177,24.15,21.82]
[1673856189718,38.993,24.176,24.14,21.82]
[1673856189917,20.0,24.174,24.14,21.82]
[1673856190128,21.78,24.17,24.13,21.77]
[1673856190359,38.993,24.169,24.13,21.77]
[1673856190672,21.993,24.168,24.131,20.0]
[1673856190982,21.993,24.168,24.13,21.77]
[1673856190983,20.0,24.166,24.13,21.77]
[1673856191202,20.0,24.164,24.13,21.77]
[1673856191384,17.0,24.163,24.13,21.77]
[1673856191589,153.6054,24.162,24.13,21.77]
[1673856191818,20.0,24.16,24.13,21.77]
[1673856192235,20.0,24.159,24.13,21.77]
[1673856192452,20.0,24.158,24.13,21.77]
[1673856192666,41.46196354,24.158,24.13,21.77]
[1673856192880,41.46196354,24.158,24.131,20.0]
[1673856193072,41.46196354,24.158,24.132,20.0]
[1673856193283,41.46196354,24.158,24.131,20.0]
[1673856194020,20.0,24.161,24.14,21.7]
[1673856194225,20.0,24.161,24.141,20.0]
[1673856194967,140.4109,24.18,24.143,20.0]
[1673856195168,129.7738,24.173,24.144,37.0]
[1673856195384,20.0,24.172,24.144,37.0]
[1673856195711,41.46196354,24.172,24.144,37.0]
[1673856196039,20.0,24.17,24.144,37.0]
[1673856196346,21.46196354,24.169,24.144,37.0]
[1673856196864,21.46196354,24.169,24.144,20.0]
[1673856197191,20.0,24.168,24.141,20.0]
[1673856197386,1.993,24.167,24.141,20.0]
[1673856197604,23.45496354,24.167,24.141,20.0]
[1673856197812,61.46196354,24.166,24.14,21.7]
[1673856198025,78.46196354,24.166,24.133,115.4151]
[1673856198236,23.45496354,24.165,24.133,115.4151]
[1673856198553,80.45496354,24.164,24.133,115.4151]
[1673856198742,20.0,24.163,24.133,115.4151]
[1673856198954,20.0,24.161,24.13,21.77]
[1673856199156,20.0,24.161,24.122,20.0]
[1673856199157,58.82,24.16,24.122,111.4383]
[1673856199383,20.0,24.158,24.122,111.4383]
[1673856199600,38.993,24.157,24.122,111.4383]
[1673856199809,21.993,24.156,24.122,111.4383]
[1673856200122,20.0,24.154,24.122,111.4383]
[1673856200339,37.0,24.153,24.122,111.4383]
[1673856200525,37.0,24.153,24.104,20.0]
[1673856200526,21.64,24.15,24.11,21.82]
[1673856200737,38.993,24.149,24.11,21.82]
[1673856200956,1.993,24.148,24.11,21.82]
[1673856201169,20.0,24.147,24.111,20.0]
[1673856201383,38.993,24.146,24.111,20.0]
[1673856201594,1.993,24.145,24.111,20.0]
[1673856201907,20.0,24.144,24.111,20.0]
[1673856202121,37.0,24.143,24.112,37.0]
[1673856202348,37.0,24.143,24.112,20.0]
[1673856202349,20.0,24.142,24.112,20.0]
[1673856202553,126.6573,24.141,24.112,20.0]
[1673856202871,20.0,24.14,24.111,20.0]
[1673856203063,20.0,24.139,24.111,20.0]
[1673856203272,41.46196354,24.139,24.111,20.0]
[1673856203489,38.46196354,24.138,24.111,20.0]
[1673856203699,20.0,24.137,24.112,20.0]
[1673856204453,20.0,24.137,24.113,17.0]
[1673856204646,20.0,24.137,24.114,20.0]
[1673856204843,20.0,24.137,24.115,17.0]
[1673856206024,41.46196354,24.137,24.115,17.0]
[1673856207387,41.46196354,24.137,24.114,20.0]
[1673856207388,20.0,24.135,24.114,20.0]
[1673856207600,20.0,24.135,24.111,20.0]
[1673856208733,20.0,24.135,24.112,17.0]
[1673856208942,20.0,24.135,24.113,20.0]
[1673856209170,20.0,24.137,24.113,20.0]
[1673856209365,20.0,24.137,24.114,17.0]
[1673856209790,20.0,24.135,24.105,111.4383]
[1673856209996,20.0,24.134,24.105,111.4383]
[1673856210207,20.0,24.133,24.106,20.0]
[1673856210417,37.0,24.132,24.105,111.4383]
[1673856210628,20.0,24.131,24.105,111.4383]
[1673856210964,20.0,24.129,24.105,111.4383]
[1673856211472,21.46196354,24.128,24.1,21.9]
[1673856211690,38.993,24.127,24.091,116.6527]
[1673856211888,20.0,24.125,24.092,20.0]
[1673856212097,37.0,24.124,24.092,20.0]
[1673856212325,20.0,24.123,24.092,20.0]
[1673856212527,37.0,24.122,24.091,116.6527]
[1673856212744,136.9357,24.121,24.09,21.82]
[1673856212951,37.0,24.12,24.09,21.82]
[1673856213481,20.0,24.119,24.091,20.0]
[1673856213802,41.46196354,24.119,24.091,20.0]
[1673856214202,41.46196354,24.119,24.092,17.0]
[1673856214741,20.0,24.119,24.093,20.0]
[1673856214951,20.0,24.119,24.094,17.0]
[1673856215163,20.0,24.119,24.095,20.0]
[1673856215379,20.0,24.119,24.096,17.0]
[1673856215783,41.78,24.14,24.1,21.77]
[1673856215983,21.46196354,24.127,24.102,20.0]
[1673856216193,20.0,24.127,24.103,20.0]
[1673856216407,20.0,24.127,24.105,20.0]
[1673856216629,20.0,24.127,24.106,17.0]
[1673856216829,20.0,24.127,24.103,20.0]
[1673856217038,20.0,24.127,24.104,17.0]
[1673856217247,21.46196354,24.127,24.105,20.0]
[1673856217467,20.0,24.14,24.11,21.77]
[1673856217680,20.0,24.14,24.111,37.0]
[1673856217887,21.64,24.15,24.111,45.14301154]
[1673856218110,20.0,24.148,24.112,65.46804493]
[1673856218299,20.0,24.148,24.113,37.0]
[1673856218503,21.46196354,24.147,24.113,45.14301154]
[1673856218733,20.0,24.14,24.113,45.14301154]
[1673856218948,41.46196354,24.14,24.113,20.0]
[1673856219133,20.0,24.138,24.111,20.0]
[1673856219769,17.0,24.137,24.111,20.0]
[1673856220003,20.0,24.136,24.111,20.0]
[1673856220306,20.0,24.136,24.111,8.14301154]
[1673856220522,109.6405,24.137,24.112,20.0]
[1673856220714,109.6405,24.137,24.113,20.0]
[1673856220932,109.6405,24.137,24.115,20.0]
[1673856221151,109.6405,24.137,24.117,20.0]
[1673856221373,20.0,24.136,24.118,17.0]
[1673856221680,20.0,24.136,24.12,23.36]
[1673856221877,20.0,24.136,24.121,17.0]
[1673856222833,20.0,24.136,24.12,23.36]
[1673856223589,20.0,24.136,24.115,8.14301154]
[1673856223896,20.0,24.134,24.11,23.37]
[1673856224081,20.0,24.134,24.111,20.0]
[1673856224292,20.0,24.132,24.1,23.61]
[1673856224505,20.0,24.13,24.1,23.61]
[1673856224717,20.0,24.129,24.1,23.61]
[1673856224922,20.0,24.127,24.102,20.0]
[1673856225454,20.0,24.127,24.103,8.14301154]
[1673856225651,20.0,24.127,24.1,23.61]
[1673856225867,17.0,24.126,24.101,20.0]
[1673856226096,20.0,24.125,24.1,23.61]
[1673856226289,41.46196354,24.125,24.1,23.61]
[1673856226712,20.0,24.125,24.101,20.0]
[1673856227142,20.0,24.125,24.102,8.14301154]
[1673856227354,41.46196354,24.125,24.1,23.61]
[1673856227567,20.0,24.124,24.1,23.61]
[1673856227889,20.0,24.122,24.1,23.61]
[1673856228195,20.0,24.121,24.1,23.61]
[1673856228392,20.0,24.12,24.1,23.61]
[1673856228599,20.0,24.12,24.1,23.46]
[1673856229669,17.0,24.119,24.093,20.0]
[1673856229862,20.0,24.12,24.093,20.0]
[1673856229863,20.0,24.118,24.093,8.14301154]
[1673856230076,20.0,24.118,24.09,23.46]
[1673856230283,41.46196354,24.118,24.09,23.46]
[1673856230513,21.46196354,24.117,24.09,23.46]
[1673856230719,20.0,24.116,24.091,20.0]
[1673856230939,20.0,24.116,24.09,23.46]
[1673856231138,20.0,24.116,24.091,20.0]
[1673856231338,20.0,24.116,24.085,7.68392097]
[1673856231339,21.46196354,24.115,24.085,7.68392097]
[1673856231546,20.0,24.114,24.08,23.63]
[1673856231756,20.0,24.113,24.082,7.68392097]
[1673856231966,20.0,24.112,24.082,7.68392097]
[1673856232177,20.0,24.111,24.082,7.68392097]
[1673856232403,20.0,24.11,24.082,7.68392097]
[1673856232611,20.0,24.11,24.082,27.68392097]
[1673856232818,41.46196354,24.11,24.082,7.68392097]
[1673856233137,21.46196354,24.109,24.081,113.7063]
[1673856233456,20.0,24.108,24.081,113.7063]
[1673856233767,21.46196354,24.107,24.081,113.7063]
[1673856234172,21.46196354,24.107,24.08,23.49]
[1673856234409,20.0,24.105,24.07,23.29]
[1673856234717,41.46196354,24.104,24.073,113.7063]
[1673856235037,41.46196354,24.103,24.073,113.7063]
[1673856235243,20.0,24.102,24.073,113.7063]
[1673856235457,20.0,24.102,24.07,23.29]
[1673856235764,23.45,24.1,24.071,20.0]
[1673856236079,20.0,24.099,24.07,30.97392097]
[1673856236273,20.0,24.099,24.07,23.29]
[1673856236708,20.0,24.097,24.07,23.29]
[1673856237110,20.0,24.095,24.07,23.29]
[1673856237963,20.0,24.095,24.071,7.68392097]
[1673856239000,20.0,24.095,24.07,23.29]
[1673856239446,41.46196354,24.095,24.07,23.29]
[1673856240279,20.0,24.095,24.07,23.29]
[1673856240689,21.46196354,24.094,24.07,23.29]
[1673856241245,20.0,24.119,24.08,23.26]
[1673856241433,20.0,24.119,24.09,23.26]
[1673856241757,137.1514,24.119,24.09,23.26]
[1673856241959,137.1514,24.119,24.091,7.68392097]
[1673856242286,137.1514,24.119,24.092,17.0]